Workbook

Sheet Copyright
B16: https://actualicese.com/plantilla-en-excel-del-formulario-420-ag-2024-declaracion-anual-del-impuesto-al-patrimonio/

Sheet Empieza aquí

Sheet Introducción
B6: Plantilla del formulario 420 AG 2024: declaración anual del impuesto al patrimonio
B9: Fecha de actualización: abril 24 de 2024
B11: La Resolución Dian 000071 de 2023 prescribió el formulario 420 para presentar la declaración del impuesto al patrimonio del año gravable 2023 y siguientes.
B12: Este formato en Excel te facilita la liquidación de este impuesto, que deberá ser presentado cuando un contribuyente llegue a poseer en enero 1 de cada año un patrimonio líquido declarable al Gobierno Colombiano igual o superior a 72.000 UVT ($3.388.680.000 en el 2024).
B14: Responsables del impuesto al patrimonio (sujetos pasivos)
B16: A través de los artículos 35 a 41 de la Ley de reforma tributaria 2277 de diciembre 13 de 2022
B17: se agregaron los artículos 292-3, 294-3, 295-3, 296-3 y 297-3 al ET. También se modificaron los artículos 298-2 y 298-8 del mismo estatuto, creando de esa forma el impuesto al patrimonio de carácter permanente (responsabilidad 03 en el RUT).
B18: Este impuesto recae sobre los sujetos pasivos que se mencionan en el artículo 292-3 del ET (adicionado por el artículo 35 de la Ley 2277 de 2022), a saber:
B20: 1. Personas naturales y/o sucesiones ilíquidas que sean contribuyentes del impuesto de renta y complementario o de regímenes sustitutivos del impuesto sobre la renta.
B21: 2. Personas naturales, nacionales o extranjeras, que no tengan residencia en el país, respecto de su patrimonio poseído directamente en el país, salvo las excepciones previstas en los tratados internacionales y en el derecho interno.
B22: 3. Personas naturales, nacionales o extranjeras, que no tengan residencia en el país, respecto de su patrimonio poseído indirectamente a través de establecimientos permanentes en el país, salvo las excepciones previstas en los tratados internacionales y en el derecho interno. Nota: el deber formal de declarar estará en cabeza del establecimiento permanente.
B23: 4. Sucesiones ilíquidas de causantes sin residencia en el país al momento de su muerte respecto de su patrimonio poseído en el país.
B24: 5. Sociedades o entidades extranjeras que no sean declarantes del impuesto sobre la renta en el país, y que posean bienes ubicados en Colombia diferentes a acciones, cuentas por cobrar y/o inversiones de portafolio de conformidad con el artículo 2.17.2.2.1.2 del Decreto 1068 de 2015 y el 18-1 del ET, como inmuebles, yates, botes, lanchas, obras de arte, aeronaves o derechos mineros o petroleros. Nota: para que apliquen las exclusiones aquí consagradas, las acciones, cuentas por cobrar, inversiones de portafolio y contratos de arrendamiento financiero deben cumplir en debida forma con las obligaciones previstas en el régimen cambiario vigente en Colombia.
B26: Hecho generador del impuesto
B28: Según el artículo 36 de la Ley 2277 de 2022, que adicionó el artículo 294-3 al ET, el impuesto al patrimonio se genera si estos sujetos pasivos poseen al primero (1) de enero de cada año, un patrimonio líquido cuyo valor sea igual o superior a setenta y dos mil (72.000) UVT, calculado tomando el total del patrimonio bruto del contribuyente menos las deudas a cargo vigentes en esa fecha.
B30: Liquidación del impuesto al patrimonio
B32: El contribuyente deberá tomar su patrimonio líquido a enero 1 y liquidar sobre este el respectivo impuesto al patrimonio, utilizando las tablas fijadas en el artículo 296-3 del ET.
B34: Hay que tener en cuenta que la tarifa del 1,5 % solo aplicará de manera temporal desde el año 2023 y hasta el 2026. A partir del año 2027, desaparecerá ese último rango.
B36: Además, en el caso de las personas naturales declarantes del impuesto al patrimonio, se excluyen de dicho impuesto las primeras 12.000 UVT del valor patrimonial de su casa o apartamento de habitación. Esta exclusión aplica únicamente respecto a la casa o apartamento en donde efectivamente viva la persona natural la mayor parte del tiempo, por lo que no quedan cobijados por esta exclusión los inmuebles de recreo, segundas viviendas u otro inmueble que no cumpla con la condición de ser el lugar en donde habita la persona natural (ver el artículo 295-3 del ET, adicionado por el artículo 37 de la Ley 2277 de 2022).
B38: Para determinar la base gravable del impuesto al patrimonio, se seguirán las siguientes reglas: 1. El valor de las acciones o cuotas de interés social de sociedades o entidades nacionales que no coticen en la Bolsa de Valores de Colombia o una de reconocida idoneidad internacional según lo determine la Dian, corresponde al costo fiscal determinado conforme a lo previsto en el titulo II del libro I del ET, actualizado anualmente en los términos del artículo 73 del mismo estatuto para las acciones o cuotas de interés social, a partir de su adquisición. Las acciones o cuotas de interés social adquiridas antes del primero (1) de enero de 2006, se entenderán adquiridas en el año 2006. Si el valor calculado conforme a la anterior regla es mayor al valor intrínseco de las acciones, se tomará este último. El valor intrínseco se calculará dividiendo el patrimonio contable a primero (1) de enero de cada año, entre las acciones o cuotas de interés social en circulación. 2. En el caso de las acciones o cuotas de interés social de sociedades o entidades nacionales que coticen en la Bolsa de Valores de Colombia o una de reconocida idoneidad internacional según lo determine la Dian, el valor corresponderá al promedio de cotización del mercado del año o fracción de año, inmediatamente anterior a la fecha de causación del impuesto. El tratamiento aquí previsto (en estos dos numerales) será aplicable para determinar el costo fiscal de los derechos en vehículos de inversión, como fiducias mercantiles o fondos de inversión colectiva, cuyos activos correspondan a acciones o cuotas de interés social de sociedades o entidades nacionales, de acuerdo con el artículo 271-1 del ET.
B40: 3. Las participaciones en fundaciones de interés privado, trusts, seguro con componente de ahorro material, fondos de inversión o cualquier otro negocio fiduciario en el exterior, se asimilarán a derechos fiduciarios y en este caso se aplicará lo dispuesto en los artículos 271-1 y 288 del ET. Nota: lo previsto para la determinación de la base gravable solo tiene efectos en el impuesto al patrimonio y no podrá ser aplicado a otros impuestos.
B42: Recuerda…
B43: Cuando se trate de acciones o cuotas de interés social de sociedades o entidades nacionales que no coticen en la Bolsa de Valores de Colombia o una de reconocida idoneidad internacional, según lo determine la Dian, y que cumplan la totalidad de los siguientes requisitos, el valor de dichas acciones o cuotas de interés social será al costo fiscal: 1. Que la sociedad sea una sociedad emergente innovadora, es decir, que su constitución no sea mayor a 4 años y que su propósito sea el desarrollo de un negocio innovador y escalable e involucre dentro de su actividad económica principal el uso intensivo de tecnologías digitales o la ejecución de programas de I+D+i, con concepto favorable del Ministerio de Comercio, Industria y Turismo o del Ministerio de Ciencia, Tecnología e Innovación. 2. Que la sociedad haya recibido al menos 105.000 UVT de inversión en el capital durante el año gravable en curso o en los 4 años gravables inmediatamente anteriores, a cambio de al menos el 5 % de la participación en el capital de la sociedad. 3. Que la sociedad no haya tenido renta líquida gravable al 31 de diciembre del año gravable inmediatamente anterior. 4. Que el costo fiscal de las acciones de uno o varios de los accionistas no fundadores o iniciales de la sociedad sea por lo menos 3 veces su valor intrínseco con base en el patrimonio líquido de la sociedad al 31 de diciembre del año gravable inmediatamente anterior. El anterior tratamiento durará por un término de 4 años desde el momento de recibir la inversión, con el cumplimiento de todos los requisitos antes mencionados.
B45: Patrimonio que se debe reportar
B47: Cabe anotar que las personas naturales y/o sucesiones ilíquidas que califiquen como residentes están obligados a denunciar tanto el patrimonio poseído en Colombia como el poseído en el exterior. En cambio, las sociedades que no sean nacionales, e igualmente las personas naturales y/o sucesiones ilíquidas que no sean residentes, solo declaran los patrimonios poseídos en Colombia (ver los artículos 9, 10, 12, 12-1, 20, 20-1, 20-2 y 261 a 266 del ET).
B49: Formulario 420 para la declaración del impuesto al patrimonio AG 2024
B51: Con base en todo lo explicado hasta el momento, y tomando como referencia la Resolución 000071 de mayo 4 de 2023, la cual prescribió el formulario 420 para presentar la declaración del impuesto al patrimonio por el AG 2023 y siguientes, en este archivo de Excel compartimos las siguientes hojas de cálculo:
B53: - "Vencimientos": incluye los plazos expuestos en el artículo 1.6.1.13.2.53 del DUT 1625 de 2016 (modificado por el artículo 1 del Decreto 2229 de 2023) para la declaración y el pago del impuesto al patrimonio en 2024.
B54: - "Material relacionado": compartimos una serie de editoriales y respuestas que contienen directrices sobre la depuración y novedades de este impuesto.
B55: - "Anexo": se puede verificar cuál es la depuración del patrimonio líquido poseído, y las exclusiones y descuentos permitidos para hallar la base gravable para liquidar el impuesto al patrimonio al 1 de enero de 2024.
B56: - "F420": contiene el borrador del formulario 420 debidamente formulado para presentar la declaración del impuesto al patrimonio ante la Dian.
B57: - "Comentarios": corresponde a la información expuesta por la Dian y otros comentarios de Actualícese para el diligenciamiento del formulario 420 para la declaración del impuesto al patrimonio.
B58: - "Instructivo": información relacionada con las instrucciones compartidas por la Dian en el formulario PDF 420.
B59: Todas las funcionalidades de este formato son compatibles con los sistemas operativos Windows y iOS, con excepción del botón incluido para descargar el PDF de la hoja "F420" que no es compatible con el sistema iOS.
B61: Nota: esta es una plantilla elaborada con base en el diseño del formulario emitido por la Dian, pero Actualícese no entrega esta guía en representación de dicha entidad. El diseño, los datos, comentarios o interpretaciones bajo los cuales se elaboró esta plantilla son a título de guía. Será el contribuyente quien deba atender las instrucciones de la Dian, estudiar las normas requeridas, preparar y emitir la información a que haya lugar. Actualícese no se hace responsable de las interpretaciones, operaciones o información derivadas del uso de esta herramienta.

Sheet Vencimientos
B6: Plazos para la declaración y pago del impuesto al patrimonio en 2024
B10: =+Introducción!B9 -> Fecha de actualización: abril 24 de 2024
B12: El impuesto al patrimonio se genera por la posesión del mismo al 1 de enero de 2024 por un valor igual o superior a 72.000 UVT.
B13: Para consultar los plazos actualizados de este impuesto puedes ingresar a nuestros calendarios:
B15: Tenga en cuenta que de acuerdo con el artículo 1.6.1.13.2.53 del Decreto 1625 de 2016, modificado por el artículo 1 del Decreto 2229 de 2023, los vencimientos para el impuesto al patrimonio en 2024 son los siguientes:
B17: Declaración y pago 1ª cuota*
B19: Último dígito del NIT | D19: Hasta el día | F19: Último dígito del NIT | H19: Hasta el día
B20: 1 | D20: 10 de mayo | F20: 6 | H20: 20 de mayo
B21: 2 | D21: 14 de mayo | F21: 7 | H21: 21 de mayo
B22: 3 | D22: 15 de mayo | F22: 8 | H22: 22 de mayo
B23: 4 | D23: 16 de mayo | F23: 9 | H23: 23 de mayo
B24: 5 | D24: 17 de mayo | F24: 0 | H24: 24 de mayo
B26: *El valor de la primera cuota será del 50 % del impuesto calculado conforme a lo dispuesto en los artículos 292-3, 295-3 y 296-3 del ET
B28: Pago 2ª cuota**
B30: Último dígito del NIT | F30: Hasta el día
B31: Todos | F31: 13 de septiembre
B33: **El pago de la segunda cuota corresponderá al valor del impuesto al patrimonio declarado, restándole lo pagado en la primera cuota.
B35: Para tener en cuenta: los responsables del impuesto al patrimonio deberán presentar la declaración del mismo cuando al 1 de enero de cada año el patrimonio líquido (activos menos pasivos) que se deba informar al Gobierno colombiano (patrimonio poseído en Colombia, más el poseído en el exterior para los residentes, y solo el patrimonio poseído en Colombia para los no residentes; ver los artículos 10 y 261 a 266 del ET) supera las 72.000 UVT ($3.388.680.000 por el año gravable 2024).

Sheet Material relacionado
B6: Material relacionado
B9: =+Introducción!B9 -> Fecha de actualización: abril 24 de 2024
B12: [Ruta Actualícese] Impuesto al patrimonio: obligados, plazos y declaración AG 2024
B13: Aunque el impuesto al patrimonio no es nuevo en Colombia, una particularidad de su nueva versión es la cualidad de ser permanente. Encuentra en este análisis más detalles sobre sus reglas, base gravable y plazos; así como los recursos de Actualícese con los que cuentas para ponerte al día.
B15: [Análisis] Plazos para declaración y pago del impuesto al patrimonio 2024
B16: Mediante el Decreto 2229 de 2023, el Ministerio de Hacienda estableció el calendario tributario para 2024, el cual contiene los plazos para la declaración y pago del impuesto al patrimonio 2024. Conoce los plazos en que deberás cumplir con esta obligación.
B18: [Página] Zona de formularios e instructivos de la Dian
B19: En esta página encontrarás las normas más relevantes en materia tributaria utilizadas para la declaración, reporte y/o pago de diferentes obligaciones. Asimismo, compartimos sus respectivos formularios en PDF y las versiones disponibles a título de guía (por parte de Actualícese) en formato Excel. Además, aprenderás de manera práctica, a través de diferentes infografías, sobre quiénes deben utilizar cada formulario o las novedades más importantes.
B21: [Liquidador] Modelo básico en Excel para proyectar el impuesto al patrimonio 2023 y años siguientes
B22: En esta plantilla se ilustran los cálculos exigidos en los artículos 35 a 41 de la Ley de reforma tributaria 2277 de diciembre 13 de 2022 para liquidar el impuesto al patrimonio permanente de los años gravables 2023 y siguientes. Para ello es necesario definir el patrimonio líquido fiscal a enero 1 de cada año.
B24: [Informe Especial] Impuesto al patrimonio: claves para elaborar la declaración
B25: El impuesto al patrimonio, uno de los más cuestionados de la Ley 2277 de 2022, busca gravar los patrimonios más altos, propendiendo por la equidad del sistema tributario. Te presentamos los puntos más importantes de este impuesto: desde los obligados a declarar hasta las sanciones asociadas a su declaración.
B27: [Análisis] Formulario 420 para nuevo impuesto al patrimonio año 2023 y siguientes fue prescrito por la Dian
B28: El nuevo formulario 420 para el impuesto al patrimonio, prescrito con la Resolución 000071 de 2023, contiene renglones especiales en los que se deben informar los 5 casos de valores fiscales especiales a enero 1 de cada año para las acciones o cuotas poseídas en sociedades nacionales o del exterior.
B30: [Consultorio Tributario] Aplicación de la reforma tributaria 2022 en el año 2024
B31: La reforma tributaria de 2022, conocida como Ley 2277 de 2022, ha tenido un impacto significativo en las finanzas de los colombianos, por lo que es importante destacar que entró en vigor el 1 de enero de 2023. Sin embargo, algunos de sus cambios comienzan a aplicarse a partir del 1 de enero de 2024. ¡Aquí te contamos todo!
B33: [Respuesta] Así se liquida la sanción por no declarar el impuesto al patrimonio
B34: ¿Cuál es la sanción que debe liquidar un contribuyente que, al realizar la declaración de renta del año gravable 2022, se percata de que estuvo obligado a declarar impuesto al patrimonio, pero es un omiso de tal obligación? Diego Guevara, especialista en Impuestos y líder de investigación tributaria de Actualícese, resuelve esta pregunta en el Consultorio Tributario “Sanciones tributarias: tarifas, reducciones y proceso de fiscalización”.
B36: [Herramienta] Convertidor UVT
B37: Con esta herramienta puedes calcular de forma rápida y sencilla valores de pesos a UVT y viceversa. UVT 2024: $47.065

Sheet Anexo
C3: Nota 1 | D3: ANEXO - IMPUESTO AL PATRIMONIO
C6: Renglón | D6: Concepto | E6: Saldo fiscal a enero 1 de 2024 (cifras en pesos, aproximadas al múltiplo de mil más cercano)
D10: Activos (patrimonio bruto)
C11: 28 | D11: Efectivo, cuentas bancarias (en Colombia y/o en el exterior). | E11: 1,200,000,000
D12: Inventarios (en Colombia y/o en el exterior). | E12: 400,000,000
D13: Cuentas por cobrar (en Colombia y/o en el exterior). | E13: 300,000,000
D14: Casa de habitación. | E14: 700,000,000
D15: Demás activos fijos (en Colombia y/o en el exterior). | E15: 900,000,000
D16: Otros activos (en Colombia y/o en el exterior). | E16: 250,000,000
D17: SUBTOTAL ACTIVOS O PATRIMONIO BRUTO | E17: =SUM(E11:E16) -> 3,750,000,000
C18: 29 | D18: Acciones y cuotas en sociedades colombianas. | E18: 300,000,000
D19: Acciones y cuotas en sociedades del exterior. | E19: 245,000,000
D20: TOTAL ACTIVOS O PATRIMONIO BRUTO | E20: =SUM(E17:E19) -> 4,295,000,000
D22: Pasivos (deudas)
C23: 30 | D23: Financieras (en Colombia y/o en el exterior) | E23: 9,000,000
D24: Proveedores (en Colombia y/o en el exterior) | E24: 9,500,000
D25: Acreedores (en Colombia y/o en el exterior) | E25: 3,600,000
D26: Laborales (en Colombia y/o en el exterior) | E26: 2,900,000
D27: Tributarias (en Colombia y/o en el exterior) | E27: 2,100,000
D28: TOTAL PASIVOS O DEUDAS | E28: =SUM(E23:E27) -> 27,100,000
C30: 31 | D30: TOTAL PATRIMONIO LÍQUIDO FISCAL POSEÍDO | E30: =IF(E20-E28>0,E20-E28,0) -> 4,267,900,000
E32: =IF(E30>=(72000*47065),"Sí debe declarar impuesto al patrimonio","No debe declarar impuesto al patrimonio") -> Sí debe declarar impuesto al patrimonio
C34: Nota 2 | D34: Base gravable de acciones o cuotas de interés social
C35: 32 | D35: Valor patrimonial de las acciones o cuotas de interés social ajustado fiscalmente es mayor al valor intrínseco | E35: 300,000,000
C36: 33 | D36: Valor patrimonial de las acciones o cuotas de interés social ajustado fiscalmente es menor al valor intrínseco | E36: 245,000,000
C37: 34 | D37: Valor promedio acciones o cuotas de interés social que cotizan en bolsa | E37: 0
C41: Nota 3 | D41: Exclusiones (ver artículo 295-3 del ET)
C43: 37 | D43: Valor patrimonial de la casa de habitación, sin exceder las 12.000 UVT. | E43: =-IF(E14<ROUND(12000*47065,-3),E14,ROUND(12000*47065,-3)) -> (564,780,000)
C49: 38 | D49: Todo el patrimonio líquido que se entienda poseído en países de la CAN (Ecuador y Perú), con tal que en dichos países sí se haya producido algún impuesto al patrimonio o similar sobre dicho patrimonio liquido (nota: esto no lo dice expresamente el artículo 295-3 del ET, pero siempre lo ha permitido el artículo 17 de la Decisión 578 de 2004; ver también el formulario 420 diseñado por la Dian; leer el problema jurídico No. 2 en el Concepto Dian 030734 de abril 17 de 2006; y revisar la Sentencia 18884 del Consejo de Estado en agosto 21 de 2014 en https://actualicese.com/sentencia-18884-de-21-08-2014/). | E49: (20,000,000)
D51: El patrimonio líquido poseído en Colombia por parte de personas o entidades domiciliadas en países con los cuales Colombia tenga en aplicación algún convenio para evitar la doble tributación internacional (ejemplo: España, Chile, Suiza, etc.), y que son personas o entidades que no tienen en Colombia ningún tipo de "establecimiento permanente". Se resta siempre y cuando se demuestre que dicho patrimonio líquido ya ha sido gravado con el impuesto al patrimonio en el país donde reside el declarante. En todo caso, existen ciertos activos (como los bienes inmuebles), los cuales, de acuerdo con algunos de los convenios vigentes (ejemplo España), sí pueden quedar gravados en Colombia a pesar de que también sean gravados en el país de domicilio (nota: esto no lo dice directamente el artículo 295-3 del ET, pero lo permiten las instrucciones contenidas en las leyes que rigen los convenios para evitar la doble tributación internacional; ver por ejemplo: Ley 1082 de 2006, Ley 1261 de 2008, y las demás que ya estén en aplicación; ver https://actualicese.com/listado-de-convenios-internacionales-para-evitar-la-doble-tributacion-ano-gravable-2022-y-2023/) | E51: (25,000,000)
C56: Nota 4 | D56: LIQUIDACIÓN PRIVADA
C58: 41 | D58: Base gravable para el impuesto al patrimonio expresada en UVT (2024) | E58: =+'F420'!AN30/47065 -> 77,724.85
D59: Impuesto al patrimonio | E59: =+MAX(E63,E64,E65,E66) -> $ 1,347,000
B61: Rangos en UVT | D61: Instrucción para calcular impuesto en $ | E61: Calculo en $ del impuesto | F61: Tarifa Marginal
B62: Desde | C62: Hasta
B63: >0 | C63: 72,000 | D63: No tiene | E63: $ 0 | F63: 0%
B64: >72.000 | C64: 122,000 | D64: (Base gravable expresada en UVT menos 72.000 UVT) × 0,5% | E64: =IF(E58>72000,(IF(E58<=122000,ROUND((((+E58-72000)*0.5%)*47065),-3),0)),0) -> $ 1,347,000 | F64: 0.5%
B65: >122.000 | C65: 239,000 | D65: (Base gravable expresada en UVT menos 122.000 UVT) × 1% más 250 UVT | E65: =IF(E58>122000,IF(E58<=239000,ROUND((((+E58-122000)*1%)*47065)+(250*47065),-3),0),0) -> $ 0 | F65: 1.0%
B66: >239.000 | C66: En adelante | D66: (Base gravable expresada en UVT menos 239.000 UVT) × 1,5% más 1.420 UVT | E66: =IF(E58>239000,ROUND((((+E58-239000)*1.5%)*47065)+(1420*47065),-3),0) -> $ 0 | F66: 1.5%
C69: 42 | D69: Menos: Descuentos tributarios por convenios internacionales (este renglón solo lo utilizarían los domiciliados en Colombia que tengan patrimonios líquidos poseídos en los países con los cuales existan convenios para evitar la doble tributación y haya sucedido que algunos de los patrimonios líquidos poseídos en esos otros países, por ejemplo los bienes raíces, hayan quedado gravados en esos territorios. Por tanto, como algunos de los patrimonios líquidos poseídos en los otros países pueden llegar a producir impuesto tanto en Colombia como en el exterior, es por eso que el impuesto pagado en el otro país sí lo dejarán restar como descuento en el formulario que se presenta ante el Gobierno colombiano). Obviamente, el valor del "descuento" se debe limitar hasta el mismo valor del impuesto que los patrimonios líquidos poseídos y gravados en los otros países estén produciendo en el formulario colombiano. | E69: (500,000)

Sheet F420
L2: Declaración Impuesto al Patrimonio | AM2: Privada
B5: 1. Año | E5: 2 | F5: 0 | G5: 2 | H5: 4
AB6: 4. Número de Formulario
B7: Espacio reservado para la DIAN
BB8: Ver nota 5
B11: Datos del Declarante | C11: 5. Numero de Identificacion Tributaria (NIT) | P11: 6. | Q11: DV. | R11: 7. Primer Apellido | Y11: 8. Segundo Apellido | AJ11: 9. Primer Nombre | AP11: 10. Otros Nombres
C14: 11. Razón Social | AV14: 12. Cod. Direccion Secconal
B16: Si es una corrección indique: | L16: 25.Cod. | S16: 26. No formulario anterior
B17: 27. Es beneficiario de un convenio para envitar la doble imposición (Marque "X")
B18: Impuesto al patrimonio | C18: Hecho generador | E18: Patrimonio bruto (sin incluir el valor patrimonial de las acciones o cuotas de interés social) | AM18: 28 | AN18: =Anexo!E17 -> 3,750,000,000
E19: Valor patrimonial de las acciones o cuotas de interés social | AM19: 29 | AN19: =+Anexo!E18+Anexo!E19 -> 545,000,000
E20: Pasivos | AM20: 30 | AN20: =Anexo!E28 -> 27,100,000
E21: Patrimonio líquido (28 + 29 - 30) | AM21: 31 | AN21: =IF(AN18+AN19-AN20>0,AN18+AN19-AN20,0) -> 4,267,900,000
C22: Base gravable de acciones o cuotas de interés social | E22: Valor patrimonial de las acciones o cuotas de interés social ajustado fiscalmente es mayor al valor intrínseco | AM22: 32 | AN22: =+Anexo!E35 -> 300,000,000
E23: Valor patrimonial de las acciones o cuotas de interés social ajustado fiscalmente es menor al valor intrínseco | AM23: 33 | AN23: =+Anexo!E36 -> 245,000,000
E24: Valor promedio acciones o cuotas de interés social que cotizan en bolsa | AM24: 34 | AN24: =+Anexo!E37 -> 0
E25: Base gravable acciones o cuotas de interés social (32 + 33 + 34) | AM25: 35 | AN25: =IF(AN22+AN23+AN24>0,AN22+AN23+AN24,0) -> 545,000,000
C26: Patrimonio líquido ajustado (28 - 30 + 35) | AM26: 36 | AN26: =+AN18-AN20+AN25 -> 4,267,900,000
C27: Exclusiones | E27: Valor patrimonial neto de la casa o apartamento de habitación (sólo personas naturales, las primeras 12.000 UVT) | AM27: 37 | AN27: =Anexo!E43*-1 -> 564,780,000
E28: Patrimonio líquido susceptible de ser excluido en virtud de convenios internacionales | AM28: 38 | AN28: =(Anexo!E49+Anexo!E51)*-1 -> 45,000,000
E29: Total exclusiones (37 + 38) | AM29: 39 | AN29: =SUM(AN27:AY28) -> 609,780,000
C30: Base gravable para el impuesto al Patrimonio (36 - 39) | AM30: 40 | AN30: =+AN26-AN29 -> 3,658,120,000
B31: Liquidación privada | C31: Impuesto al patrimonio | AM31: 41 | AN31: =+Anexo!E59 -> 1,347,000
C32: Descuento tributario por convenios internacionales | AM32: 42 | AN32: =Anexo!E69*-1 -> 500,000
C33: Saldo a pagar por impuesto (41 - 42) | AM33: 43 | AN33: =IF(AN31-AN32>0,AN31-AN32,0) -> 847,000
C34: Sanciones | AM34: 44 | AN34: 0 | BB34: Ver nota 6
C35: Total saldo a pagar (43 + 44) | AM35: 45 | AN35: =AN33+AN34 -> 847,000
B53: 46. No. Identificación signatario | R53: 47. DV
B54: 981. Cód. Representación | S54: 997. Fecha efectiva de la transacción
B55: Firma del declarante o de quien lo representa
AI56: 980. Pago Total $ | AN56: =AN35 -> $ 847,000
AH58: 996. Espacio para rl número interno de la DIAN / Adhesivo)
B59: 982. Código Contador o Revisor Fiscal
B60: Firma Contador o Revisor Fiscal. 994. Con salvedades
B63: 983. No. Tarjeta profesional

Sheet Comentarios
B5: Comentarios y notas para el diligenciamiento de este formato
B7: =+Introducción!B9 -> Fecha de actualización: abril 24 de 2024
B9: Comentarios hoja "Anexo"
B11: Nota 1 F420 (volver a la hoja "Anexo")
B12: Recuérdese que las personas naturales y/o sucesiones ilíquidas que califiquen como residentes están obligados a denunciar al Gobierno colombiano tanto el patrimonio poseído en Colombia como el poseído en el exterior. En cambio, las sociedades y entidades extranjeras, e igualmente las personas naturales y/o sucesiones ilíquidas, que no sean residentes, solo declaran al Gobierno colombiano los patrimonios poseídos en Colombia (ver los artículos 9, 10, 12, 12-1, 20, 20-1, 20-2 y 261 a 266 del ET).
B14: Casilla 28 F420 (volver a la hoja "Anexo")
B15: Solo las personas naturales podrán restar las primeras 12.000 UVT del valor patrimonial de su casa o apartamento de habitación. Sin embargo, debe tomarse en cuenta que en el artículo 295-3 del ET se coloca la siguiente restricción: "Esta exclusión aplica únicamente respecto a la casa o apartamento en donde efectivamente viva la persona natural la mayor parte del tiempo, por lo que no quedan cobijados por esta exclusión los inmuebles de recreo, segundas viviendas u otro inmueble que no cumpla con la condición de ser el lugar en donde habita la persona natural".
B17: Casilla 29 F420 (volver a la hoja "Anexo")
B18: Registre en esta casilla el valor patrimonial de las acciones o cuotas de interés social, determinado conforme a lo previsto en el título II del libro I del ET, poseídas por el contribuyente a enero 1 de cada año (ver artículo 295-3 del ET).
B20: Casilla 30 F420 (volver a la hoja "Anexo")
B21: No incluir el pasivo que nacerá al calcular el impuesto a patrimonio sobre las bases gravables de este mismo ejercicio (pues si se incluye ese pasivo, entonces se formaría una "referencia circular").
B23: Casilla 31 F420 (volver a la hoja "Anexo")
B24: Solo si este patrimonio líquido fiscal poseido a enero 1 de 2024 es igual o superior a 72.000 UVT ($3.388.680.000 en el 2024) existe la obligación de presentar la declaración del impuesto al patrimonio. Pero este valor no es la "base gravable" que se utilizará.
B26: Nota 2 F420 (volver a la hoja "Anexo")
B27: En los renglones 32, 33 y 34 se pide informar el valor fiscal especial mencionado en los parágrafos 3 y 4 del artículo 295-3 del ET para las acciones o cuotas, lo cual depende de si cotizan o no en bolsa, y de si se poseen o no en las sociedades tecnológicas mencionadas en el parágrafo 4 del artículo 295-3 del ET.
B29: Casilla 32 F420 (volver a la hoja "Anexo")
B30: Registre en esta casilla el valor intrínseco de las acciones o cuotas de interés social que no cotizan en la Bolsa de Valores de Colombia o una de reconocida idoneidad internacional y que se encuentran contenidas en la casilla 29, cuando el valor patrimonial ajustado anualmente conforme a lo establecido en el artículo 73 del ET, sea mayor al valor intrínseco de las mismas acciones. Debe tenerse en cuenta que si el valor intrínseco es negativo, se debe registrar en esta casilla el valor cero (0).
B32: Casilla 33 F420 (volver a la hoja "Anexo")
B33: Registre en esta casilla el valor patrimonial de las acciones o cuotas de interés social que no cotizan en la Bolsa de Valores de Colombia o una de reconocida idoneidad internacional, ajustado conforme a lo establecido en el artículo 73 del ET y que se encuentran contenidas en la casilla 29, cuando el valor patrimonial ajustado anualmente sea menor al valor intrínseco de las mismas acciones.
B35: Casilla 34 F420 (volver a la hoja "Anexo")
B36: Registre en esta casilla el valor promedio de cotización del mercado de dichas acciones o cuotas de interés social del año o fracción de año inmediatamente anterior a la fecha de causación del impuesto, si en la casilla 29 se incluyeron acciones o cuotas de interés social de sociedades o entidades nacionales que coticen en la Bolsa de Valores de Colombia o una de reconocida idoneidad internacional.
B38: Nota 3 F420 (volver a la hoja "Anexo")
B39: Ingrese en las siguientes celdas lo que corresponda a exclusiones utilizando las cifras en negativo.
B41: Nota 4 F420 (volver a la hoja "Anexo")
B42: Ver tabla del artículo 296-3 del ET. Nota: la tarifa del 1,5 % solo aplicará de manera temporal durante los años 2023, 2024, 2025 y 2026. Ver el parágrafo del artículo 296-3 del ET, adicionado por el artículo 38 de la Ley 2277 de 2022.
B44: Comentarios hoja "F420"
B46: Nota 5 (volver a la hoja "F420")
B47: Esta es una plantilla elaborada con base en el diseño del formulario 420 emitido por la Dian en su Resolución 000071 de 2023, pero Actualícese no entrega esta guía en representación de dicha entidad. El diseño, los datos, comentarios o interpretaciones bajo las cuales ha sido elaborada esta plantilla son a título de guía. Será el contribuyente quien deba atender las instrucciones de la Dian, estudiar las normas requeridas, preparar y emitir la información a que haya lugar. Actualícese no se hace responsable de las interpretaciones, operaciones o informaciones derivadas del uso de esta herramienta.
B49: Nota 6 (volver a la hoja "F420")
B50: Dato manual. Incluya en esta casilla el valor total de las sanciones si hay lugar a ellas, de lo contrario escriba cero. Recuerde que la sanción a liquidar no puede ser inferior a la sanción mínima equivalente a diez (10) UVT, según lo establecido en el artículo 639 del ET.
B51: Te recomendamos nuestro formato Liquidadores de sanción por no declarar.
B52: También puedes descargar el liquidador Intereses moratorios sobre deudas tributarias.

Sheet Instructivo

Sheet Listado completo de archivos
A7: ESTE ES EL LISTADO COMPLETO DE LAS HERRAMIENTAS PUBLICADAS
A8: Fecha de actualización: abril 24 de 2024
A9: Haz clic aquí para ver una versión actualizada de este listado
A10: IDEA: | B10: Si quieres buscar una herramienta en especial en este listado, dale "Buscar" en Excel (Ctrl + B, en casi todos lados).
B12: [Pack de Formatos] 15 plantillas y guías para el reporte de información exógena 2023
B14: [Liquidador] Plantilla del formato 1647 de exógena 2023: reporte de ingresos recibidos para terceros
B16: [Liquidador] Plantilla del formato 1010 de exógena 2023: información de socios, cooperados o comuneros
B18: [Liquidador] Plantilla del formato 1004 de exógena 2023: reporte de descuentos al impuesto de renta y el SIMPLE
B20: [Matriz] Resumen con las categorías de los informantes de exógena AG 2023 y los formatos que deben usar
B22: Liquidador del cálculo de retención en la fuente por pensiones
B24: Liquidador de aportes al fondo de solidaridad pensional por parte de un empleado
B26: Liquidador (con macros) de nómina de empleados de servicio doméstico que laboran por días
B28: [Liquidador] Plantilla en Excel para el control de entrega de dotación a empleados
B30: [Liquidador] Plantilla de los formatos de exógena del 5247 al 5252 por el AG 2023: reportes de los mandatarios
B32: [Liquidador] Plantilla del formato 1009 de exógena 2023: información de cuentas por pagar
B34: [Liquidador] Plantilla del formato 1008 de exógena 2023: información de cuentas por cobrar
B36: [Liquidador] Plantilla del formato 1007 de exógena 2023: información de ingresos propios
B38: [Lista de chequeo] Guía en Excel para auditar el formato 2516: conciliación fiscal de las personas jurídicas
B40: Liquidador de indemnización por despido sin justa causa (contrato fijo y de obra o labor)
B42: Casos prácticos de retención en la fuente por compras, servicios y honorarios
B44: [Liquidador] Formulario 260 AG 2023 – declaración anual del régimen simple (personas naturales que no llevan contabilidad)
B46: [Liquidador] Formulario 260 AG 2023 – declaración anual del régimen simple (personas naturales y jurídicas que llevan contabilidad)
B48: [Liquidador] Plantilla del formato 2276, 2280 y 2743 para el reporte de información exógena de 2023
B50: [Liquidador] Plantilla del formato 1003 de exógena 2023: retenciones que le practicaron al informante
B52: [Liquidador] Plantilla de los formatos 1005 y 1006 de exógena 2023: reporte del INC e IVA descontable y generados
B54: [Liquidador] Plantilla de los formatos 1011, 1012 y 2275 de exógena 2023 para el reporte de otros datos en renta e IVA
B56: Modelo en Word de un contrato de transacción laboral para la terminación del contrato de trabajo
B58: [Liquidador] Plantilla del formato 1001 del año gravable 2023: reporte de exógena de pagos o abonos en cuenta
B60: [Liquidador] Formulario 260 AG 2023 – declaración anual del régimen simple (personas naturales que no llevan contabilidad)
B62: [Liquidador] Formulario 260 AG 2023 – declaración anual del régimen simple (personas naturales y jurídicas que llevan contabilidad)
B64: Carta para solicitar licencia por luto
B66: Modelo de poder para adelantar sucesión ante notaría
B68: Herramienta en Excel para la consulta de terceros en la Dian
B70: Liquidador del auxilio de incapacidad de origen común para trabajador independiente
B72: Modelo de autorización para el tratamiento y la protección de datos personales
B74: Liquidador avanzado en Excel (con macros) de intereses moratorios sobre deudas tributarias
B76: [Matriz] Resumen con las categorías de los informantes de exógena AG 2023 y los formatos que deben usar
B78: Liquidador en Excel del formulario 110 y el formato 2516: declaración de renta de personas jurídicas AG 2023
B80: [Liquidador] Excel del formulario 350 de retención en la fuente (vigente a partir de agosto 1 de 2024)
B82: Modelo de contrato de trabajo a término indefinido
B84: Liquidador de prestaciones sociales y vacaciones
B86: Liquidador de topes de ingresos para presentar formatos de conciliación fiscal 2516 y 2517
B88: [Guía] Clasificación de las personas jurídicas frente al impuesto de renta y el SIMPLE AG 2023
B90: [Lista de chequeo] Guía para evitar errores en la presentación de información exógena
B92: Formato de cálculo de horas extra y recargos mensuales o quincenales
B94: Modelo de certificado laboral
B96: Carta de recomendación laboral
B98: Liquidador de prestaciones sociales en período de incapacidad
B100: Tabla en Excel de retención en la fuente 2024
B102: Tabla automatizada con las tarifas de autorretención especial en renta (Decretos 0261 de 2023 y 0242 de 2024)
B104: [Liquidador] Formulario 160 AG 2024 para la declaración de activos en el exterior
B106: [Liquidador] Certificado de ingresos y retenciones: plantilla del formulario 220 y del formato 2276 AG 2023
B108: Simulador para contrastar los efectos de pertenecer al régimen ordinario del impuesto a la renta o al régimen simple de tributación AG 2024
B110: Lista de chequeo de estándares mínimos de SST para empresas con 11 a 50 trabajadores
B112: Lista de chequeo de documentos para la asamblea de accionistas o junta de socios
B114: Modelo en Excel del certificado anual a socios y/o accionistas AG 2023
B116: [Liquidador] Tributación sobre dividendos y cálculo de su retención en la fuente a título de renta durante el año 2024
B118: Liquidador avanzado en Excel (con macros) de intereses moratorios sobre deudas tributarias
B120: [Guía] Clasificación de las personas jurídicas frente al impuesto de renta y el SIMPLE AG 2023
B122: Simulador de retenciones a practicar entre regímenes
B124: Liquidador de aportes a ARL para trabajadores independientes
B126: Lista de chequeo en Excel para efectuar el cierre contable y fiscal de una entidad
B128: Modelo en Word de un acuerdo de exclusividad laboral
B130: Listado de actividades económicas (códigos CIIU)
B132: Modelo de contrato de prestación de servicios
B134: Acta de entrega de dotación
B136: Solicitud de compensación en dinero de las vacaciones
B138: Modelo de acta de reunión del máximo órgano social para cambio de representante legal
B140: Lista de chequeo de estándares mínimos de SST para empresas con 10 o menos trabajadores
B142: Lista de chequeo para contratación laboral
B144: [Liquidador] Plantilla para elaborar el formulario 300 para las declaraciones del IVA en 2024
B146: Tabla para liquidar indemnizaciones por pérdida de capacidad laboral
B148: Liquidador y desprendible mensual de nómina básico en Excel
B150: Liquidador con macros para calcular la renta gravable por comparación patrimonial
B152: 3 modelos del certificado de dependientes para aplicar la deducción en la declaración de renta
B154: 12 liquidadores para calcular la prima de servicios semestral
B156: Modelo de certificado de retención en la fuente por conceptos diferentes a rentas laborales
B158: [Liquidador] Cálculo del costo de renovación de matrícula mercantil y de establecimientos de comercio (2024)
B160: Modelo en Word de documento de otorgamiento de viáticos permanentes
B162: Liquidador de sanción por corrección presentada por el contribuyente
B164: Liquidador de sanción por inexactitud con macros
B166: Modelo en Word de carta de terminación del contrato de trabajo sin justa causa por parte del empleador
B168: Calendario tributario 2024 (versión descargable)
B170: Simulador del impuesto para dividendos y participaciones no gravados de 2017 y siguientes luego de la Ley 2277 de 2022
B172: Simulador del impuesto para dividendos y participaciones gravados de 2017 y siguientes luego de la Ley 2277 de 2022
B174: Simulador del impuesto sobre dividendos y participaciones gravados de 2016 y anteriores
B176: Simulador para contrastar los efectos de pertenecer al régimen ordinario del impuesto a la renta o al régimen simple de tributación AG 2024
B178: Liquidador avanzado en Excel (con macros) de intereses moratorios sobre deudas tributarias
B180: Comparativo de pagos a trabajador (contrato de trabajo vs. contrato de prestación de servicios)
B182: Liquidador en Excel para la contabilización de la nómina (ejemplo práctico)
B184: Liquidador de sanción por extemporaneidad antes del emplazamiento
B186: Liquidador de sanción por extemporaneidad después del emplazamiento
B188: [Liquidador] Tributación sobre dividendos y cálculo de su retención en la fuente a título de renta durante el año 2024
B190: Liquidador de sanción por no consignar las cesantías y no pagar los intereses
B192: Liquidador de cesantías y sus intereses aplicado a 11 casos prácticos
B194: Liquidador de vacaciones en Excel aplicado a 10 casos prácticos
B196: [Guía] Requisitos para operar como no responsables de IVA durante el 2024
B198: Calendario para pago de aportes a seguridad social para empleadores e independientes 2023-2024
B200: Tabla en Excel de retención en la fuente 2024
B202: Tablas de retención en la fuente a título de impuestos nacionales durante el año fiscal 2024
B204: Liquidador e histórico de porcentajes de reajuste fiscal 2005-2023
B206: Liquidador en Excel de retención en la fuente con procedimiento 1 durante 2024 sobre rentas de trabajo (laborales y no laborales)
B208: Histórico de la variación nominal del salario mínimo e inflación 1993-2024
B210: Histórico del índice de precios al consumidor –IPC–
B212: Liquidador de horas extra diurnas, nocturnas, dominicales y festivas
B214: Tabla de tarifas de honorarios para contadores públicos en Colombia
B216: Liquidador de aportes a seguridad social para independientes con contrato de prestación de servicios
B218: Liquidador de aportes a seguridad social de independientes por cuenta propia y con contrato diferente al de prestación de servicios
B220: Comparativo de normas del DUT 1625 de 2016 afectadas con el Decreto 2231 de 2023
B222: Histórico del salario mínimo y el auxilio de transporte 1990-2024
B224: Guía de información laboral 2024
B226: Modelo en Excel para el cálculo de intereses a las cesantías
B228: Modelo para elaborar el comprobante de pago de intereses a las cesantías
B230: Cuadro comparativo de regímenes pensionales en Colombia
B232: Caso práctico de liquidación de un trabajador doméstico que devenga el salario mínimo
B234: Liquidador avanzado en Excel (con macros) de intereses moratorios sobre deudas tributarias
B236: Liquidador del costo de la contratación de un trabajador con el salario mínimo
B238: Calendario tributario 2024 (versión descargable)
B240: Liquidador de sanciones por incumplir con la obligación de inscribirse en el RUT
B242: Liquidadores de sanciones relacionadas con la información exógena
B244: Liquidadores de sanción por no declarar
B246: Pack de Formatos para la revisoría fiscal: dictámenes, informes, certificaciones y más
B248: Modelo de carta para el incremento anual del arrendamiento comercial
B250: Listado de convenios internacionales para evitar la doble tributación
B252: Convertidor de UVT
B254: Fórmulas para liquidar prestaciones, vacaciones y horas extra
B256: Matriz de responsabilidades en seguridad social de trabajadores independientes
B258: Dictamen de estados financieros consolidados: opinión con salvedades cuando no se obtiene evidencia
B260: Informe sobre los hallazgos obtenidos en la auditoría de inventarios, según la NISR 4400
B262: Informe de compilación de estados financieros con fines específicos
B264: Informe del revisor fiscal sobre irregularidades y deficiencias en el control interno
B266: Presencia económica significativa –PES–: comparativo en Word de las normas del DUT 1625 de 2016 afectadas con el Decreto 2039 de 2023
B268: Modelo de pagaré en blanco y carta de instrucción
B270: Guía: estructura del informe del revisor fiscal bajo NIA 701 (comunicación de las cuestiones clave de auditoría)
B272: Modelo de carta de aceptación de un encargo de auditoría concreto
B274: Dictamen del revisor fiscal con comunicación de cuestiones clave (NIA 700 revisada y NIA 701)
B276: Dictamen del revisor fiscal que incluye opinión con salvedades
B278: Certificación del contador o revisor fiscal para la inscripción de libros en la Cámara de Comercio
B280: Liquidador automatizado de la prima de servicios con comprobante de pago
B282: [Liquidador] Modelos y formatos para la elaboración de estados financieros y cálculo de los indicadores financieros
B284: Modelo básico en Excel para proyectar el impuesto al patrimonio 2023 y años siguientes
B286: Liquidador en Excel del porcentaje fijo de retención en la fuente sobre salarios en diciembre de 2023 – Procedimiento 2
B288: Liquidador avanzado en Excel (con macros) de intereses moratorios sobre deudas tributarias
B290: NIA 700 vs. NIA 700 (revisada): comparativo de estructura del informe del revisor fiscal
B292: Modelo en Excel (con macros) del documento soporte para operaciones con no obligados a facturar
B294: Modelo de acta de distribución de utilidades y pago de dividendos
B296: Modelo de acta del máximo órgano social para cambio de los miembros de junta directiva
B298: Modelo de acta de nombramiento del revisor fiscal
B300: Modelo de acta de asamblea general de accionistas
B302: Papeles de trabajo del auditor: cuestionarios de control interno para pymes
B304: Modelo de poder de representación para nombrar delegado en asamblea de copropietarios
B306: Modelo de proyecto de distribución de utilidades en una sociedad comercial
B308: Cuestionario de auditoría y control interno para el área de nómina
B310: Cuestionario de auditoría y control interno para el área de ventas
B312: Modelo de convocatoria a asamblea general ordinaria de copropietarios
B314: Modelo de acta de reunión de junta directiva
B316: Modelo de acta de decisiones de asamblea de copropietarios
B318: Informe del revisor fiscal dirigido a la asamblea de accionistas o junta de socios
B320: Modelo de convocatoria a asamblea general ordinaria de socios o accionistas
B322: Modelo de convocatoria extraordinaria a asamblea de accionistas o junta de socios
B324: Modelo de poder de representación en asamblea de accionistas o junta de socios
B326: Modelo de informe de gestión
B328: Cuestionario de auditoría y control interno para el área de compras
B330: [Pack de Formatos] Liquidadores, simuladores y guías para el cierre contable y fiscal del año gravable 2023
B332: Modelo en Word de acuerdo de pago
B334: Modelo de carta de respuesta a la solicitud de un servicio
B336: Formato de solicitud de permiso compensatorio por votaciones
B338: Modelo de solicitud de compensación y disfrute de vacaciones
B340: Simulador del impuesto sobre dividendos y participaciones gravados de 2016 y anteriores
B342: Cuestionario de auditoría en Excel para el control de propiedades, planta y equipo
B344: Cuestionario en Excel para el control interno de inventarios
B346: Cuestionario en Excel de control interno de provisiones y contingencias
B348: Caso práctico en Excel sobre adquisición de activos (inventarios) con interés implícito
B350: Listado de códigos de responsabilidades tributarias (RUT casilla 53)
B352: Caso práctico en Excel de corrección de errores de períodos anteriores
B354: Formato en Excel de circularización de clientes automatizado
B356: Guía en Excel sobre hechos posteriores al cierre que implican o no ajustes
B358: Formato en Excel de circularización de proveedores automatizado
B360: Liquidador en Excel para revisiones pertinentes en propiedad, planta y equipo en el proceso de cierre contable
B362: Lista de chequeo en Excel para efectuar el cierre contable y fiscal de una entidad
B364: Guía en Excel y casos prácticos de tributación en el impuesto de renta de los dividendos y participaciones AG 2023
B366: Pack de Formatos para el análisis financiero en Excel
B368: Guía en Word con las revelaciones de la información financiera a presentar según el Estándar para Pymes
B370: Plantilla en Excel (con macros) del estado de costos de producción y de ventas
B372: Ejercicios de conversión entre tasas de interés efectiva, nominal y periódica
B374: Formato de flujo de caja real y presupuestado
B376: Modelo en Excel de la estructura del balance de comprobación
B378: Liquidador en Excel para el cálculo de intereses de mora y su IVA en cuentas por cobrar vencidas
B380: Modelo en Excel del estado de resultados con enfoque de gastos por naturaleza o función
B382: Simulador en Excel del punto de equilibrio como herramienta de análisis financiero
B384: Guía en Excel para el análisis vertical y horizontal aplicado al estado de situación financiera y al estado de resultado integral
B386: [Liquidador] Formato de hoja de costos en Excel con macros
B388: Liquidador de indicadores financieros
B390: Modelo de autorización de descuento por libranza
B392: Liquidador Dupont: índice de rentabilidad
B394: [Simulador] Análisis de propuestas de inversión con el uso del valor presente y valor presente neto
B396: Estado de flujos de efectivo por el método directo: ejercicio práctico y plantilla en Excel
B398: Estado de flujos de efectivo por el método indirecto: ejercicio práctico y plantilla en Excel
B400: Modelo en Excel de estructura del estado de resultados y ganancias acumuladas
B402: [Simulador] Cálculo del costo amortizado y la TIR
... 2044 more rows
